[Event "SS Manhem Chess Week 2022: Goteborg Open"]
[Site "Schackcentrum, Vegagatan 20, Gothenburg, Sweden"]
[Date "2022.08.12"]
[Round "2.13"]
[White "Stedman, Theodor"]
[Black "Rasti, Arvin"]
[Result "0-1"]
[TimeControl "15 minutes + 5 seconds per move from move one (Round 1 - 4) / 90 minutes + 30 seconds per move from move one (Round 5 - 8)"]
[WhiteFideId "1756230"]
[BlackFideId "1741160"]
[WhiteElo "1474"]
[BlackElo "2156"]

1. e4 {[%clk 00:15:08]} {[%emt 00:00:02]} c6 {[%clk 00:15:07]} {[%emt
00:00:05]} 2. d4 {[%clk 00:15:04]} {[%emt 00:00:07]} d5 {[%clk 00:15:08]}
{[%emt 00:00:04]} 3. exd5 {[%clk 00:15:07]} {[%emt 00:00:02]} cxd5 {[%clk
00:15:11]} {[%emt 00:00:02]} 4. Bd3 {[%clk 00:15:12]} Nf6 {[%clk 00:15:11]}
{[%emt 00:00:06]} 5. Nf3 {[%clk 00:15:13]} {[%emt 00:00:05]} Bg4 {[%clk
00:15:02]} {[%emt 00:00:13]} 6. O-O {[%clk 00:15:14]} {[%emt 00:00:05]} e6
{[%clk 00:15:04]} {[%emt 00:00:03]} 7. Re1 {[%clk 00:15:10]} {[%emt 00:00:09]}
Nc6 {[%clk 00:15:01]} {[%emt 00:00:09]} 8. c3 {[%clk 00:15:14]} Bd6 {[%clk
00:14:52]} {[%emt 00:00:13]} 9. h3 {[%clk 00:15:05]} {[%emt 00:00:14]} Bh5
{[%clk 00:14:53]} {[%emt 00:00:03]} 10. Bg5 {[%clk 00:15:01]} {[%emt 00:00:09]}
Qc7 {[%clk 00:14:38]} {[%emt 00:00:20]} 11. Nbd2 {[%clk 00:14:53]} {[%emt
00:00:13]} h6 {[%clk 00:14:12]} {[%emt 00:00:32]} 12. Be3 {[%clk 00:13:40]}
{[%emt 00:01:18]} O-O {[%clk 00:13:24]} {[%emt 00:00:53]} 13. Nf1 {[%clk
00:12:52]} {[%emt 00:00:53]} Ne4 {[%clk 00:12:56]} {[%emt 00:00:33]} 14. Bxe4
{[%clk 00:11:45]} {[%emt 00:01:12]} dxe4 {[%clk 00:12:58]} {[%emt 00:00:02]} 15.
g4 {[%clk 00:11:49]} {[%emt 00:00:01]} Bg6 {[%clk 00:12:15]} {[%emt 00:00:48]}
16. Nh4 {[%clk 00:11:15]} {[%emt 00:00:39]} Bh7 {[%clk 00:12:15]} {[%emt
00:00:04]} 17. Qd2 {[%clk 00:11:11]} {[%emt 00:00:10]} f5 {[%clk 00:11:35]}
{[%emt 00:00:45]} 18. gxf5 {[%clk 00:10:46]} {[%emt 00:00:30]} exf5 {[%clk
00:11:33]} {[%emt 00:00:07]} 19. Ng2 {[%clk 00:10:14]} {[%emt 00:00:36]} f4
{[%clk 00:11:20]} {[%emt 00:00:19]} 20. Nxf4 {[%clk 00:09:42]} {[%emt
00:00:37]} Bxf4 {[%clk 00:11:23]} {[%emt 00:00:02]} 21. Bxf4 {[%clk 00:09:43]}
{[%emt 00:00:04]} Qxf4 {[%clk 00:11:22]} {[%emt 00:00:07]} 22. Qxf4 {[%clk
00:09:46]} {[%emt 00:00:02]} Rxf4 {[%clk 00:11:25]} {[%emt 00:00:02]} 23. Ng3
{[%clk 00:09:51]} Raf8 {[%clk 00:11:23]} {[%emt 00:00:07]} 24. Re2 {[%clk
00:09:54]} {[%emt 00:00:02]} Bf5 {[%clk 00:10:48]} {[%emt 00:00:40]} 25. Nxf5
{[%clk 00:09:38]} {[%emt 00:00:21]} R8xf5 {[%clk 00:10:50]} {[%emt 00:00:02]}
26. b4 {[%clk 00:09:40]} {[%emt 00:00:04]} Ne7 {[%clk 00:10:16]} {[%emt
00:00:38]} 27. Rae1 {[%clk 00:09:36]} {[%emt 00:00:09]} Rg5+ {[%clk 00:10:10]}
{[%emt 00:00:11]} 28. Kh2 {[%clk 00:09:33]} {[%emt 00:00:08]} Nf5 {[%clk
00:09:54]} {[%emt 00:00:22]} 29. Rg1 {[%clk 00:08:39]} {[%emt 00:00:59]} Rh5
{[%clk 00:09:48]} {[%emt 00:00:10]} 30. Kg2 {[%clk 00:08:09]} {[%emt 00:00:35]}
Rg5+ {[%clk 00:09:31]} {[%emt 00:00:22]} 31. Kh2 {[%clk 00:08:12]} {[%emt
00:00:03]} Rh5 {[%clk 00:09:33]} {[%emt 00:00:03]} 32. Kg2 {[%clk 00:08:14]}
{[%emt 00:00:03]} Nh4+ {[%clk 00:09:13]} {[%emt 00:00:25]} 33. Kg3 {[%clk
00:07:56]} {[%emt 00:00:22]} g5 {[%clk 00:08:51]} {[%emt 00:00:28]} 34. Rge1
{[%clk 00:07:50]} {[%emt 00:00:11]} Nf5+ {[%clk 00:08:29]} {[%emt 00:00:27]} 35.
Kg2 {[%clk 00:07:33]} {[%emt 00:00:22]} g4 {[%clk 00:08:25]} {[%emt 00:00:10]}
36. h4 {[%clk 00:06:57]} {[%emt 00:00:41]} Nd6 {[%clk 00:07:04]} {[%emt
00:01:26]} 37. Kg3 {[%clk 00:06:48]} {[%emt 00:00:14]} Rhf5 {[%clk 00:07:06]}
{[%emt 00:00:02]} 38. a4 {[%clk 00:06:33]} {[%emt 00:00:21]} Kf7 {[%clk
00:07:04]} {[%emt 00:00:06]} 39. Rc1 {[%clk 00:06:02]} {[%emt 00:00:36]} Rf3+
{[%clk 00:06:19]} {[%emt 00:00:50]} 40. Kxg4 {[%clk 00:05:12]} {[%emt
00:00:55]} h5# {[%clk 00:06:19]} {[%emt 00:00:04]} 0-1

[Event "SS Manhem Chess Week 2022: Goteborg Open"]
[Site "Schackcentrum, Vegagatan 20, Gothenburg, Sweden"]
[Date "2022.08.12"]
[Round "2.14"]
[White "Ghaderi, Jamal"]
[Black "Johansson, William"]
[Result "0-1"]
[TimeControl "15 minutes + 5 seconds per move from move one (Round 1 - 4) / 90 minutes + 30 seconds per move from move one (Round 5 - 8)"]
[WhiteFideId "1744178"]
[BlackFideId "1744070"]
[WhiteElo "1411"]
[BlackElo "2015"]

1. c4 {[%clk 00:15:07]} {[%emt 00:00:01]} c6 {[%clk 00:15:04]} {[%emt
00:00:06]} 2. Nc3 {[%clk 00:15:10]} {[%emt 00:00:04]} d5 {[%clk 00:15:04]}
{[%emt 00:00:03]} 3. g3 {[%clk 00:15:08]} {[%emt 00:00:07]} d4 {[%clk
00:14:32]} {[%emt 00:00:37]} 4. Ne4 {[%clk 00:15:04]} {[%emt 00:00:10]} Bf5
{[%clk 00:14:32]} {[%emt 00:00:06]} 5. Bg2 {[%clk 00:15:00]} {[%emt 00:00:08]}
e5 {[%clk 00:14:31]} {[%emt 00:00:06]} 6. d3 {[%clk 00:14:56]} {[%emt
00:00:09]} Nd7 {[%clk 00:14:30]} {[%emt 00:00:07]} 7. Nd2 {[%clk 00:14:15]}
{[%emt 00:00:46]} Ngf6 {[%clk 00:14:28]} {[%emt 00:00:06]} 8. Qb3 {[%clk
00:14:05]} {[%emt 00:00:15]} Nc5 {[%clk 00:14:29]} {[%emt 00:00:04]} 9. Qc2
{[%clk 00:13:47]} {[%emt 00:00:23]} a5 {[%clk 00:14:33]} {[%emt 00:00:01]} 10.
Ngf3 {[%clk 00:13:35]} {[%emt 00:00:17]} e4 {[%clk 00:14:13]} {[%emt 00:00:24]}
11. dxe4 {[%clk 00:13:23]} {[%emt 00:00:18]} Nfxe4 {[%clk 00:14:02]} {[%emt
00:00:16]} 12. O-O {[%clk 00:13:08]} {[%emt 00:00:20]} Nxg3 {[%clk 00:14:00]}
{[%emt 00:00:07]} 13. Qd1 {[%clk 00:12:18]} {[%emt 00:00:55]} Nxf1 {[%clk
00:14:01]} {[%emt 00:00:04]} 14. Nxf1 {[%clk 00:12:11]} {[%emt 00:00:12]} d3
{[%clk 00:13:55]} {[%emt 00:00:11]} 15. Ne5 {[%clk 00:11:43]} {[%emt 00:00:33]}
Be7 {[%clk 00:13:35]} {[%emt 00:00:25]} 16. Nxc6 {[%clk 00:11:18]} {[%emt
00:00:31]} bxc6 {[%clk 00:13:34]} {[%emt 00:00:06]} 17. Bxc6+ {[%clk 00:11:20]}
{[%emt 00:00:02]} Bd7 {[%clk 00:13:33]} {[%emt 00:00:06]} 18. Bxa8 {[%clk
00:11:24]} {[%emt 00:00:01]} Qxa8 {[%clk 00:13:36]} {[%emt 00:00:02]} 19. exd3
{[%clk 00:11:20]} {[%emt 00:00:09]} Bh3 {[%clk 00:13:38]} {[%emt 00:00:02]} 20.
Ne3 {[%clk 00:10:49]} {[%emt 00:00:37]} O-O {[%clk 00:13:39]} {[%emt 00:00:04]}
21. Nd5 {[%clk 00:09:57]} {[%emt 00:00:57]} Bd6 {[%clk 00:13:40]} {[%emt
00:00:04]} 22. Qh5 {[%clk 00:09:54]} {[%emt 00:00:08]} Qc8 {[%clk 00:13:06]}
{[%emt 00:00:39]} 23. Bf4 {[%clk 00:09:46]} {[%emt 00:00:13]} Bg4 {[%clk
00:08:52]} {[%emt 00:04:19]} 24. Qh4 {[%clk 00:08:16]} {[%emt 00:01:35]} Qd8
{[%clk 00:08:06]} {[%emt 00:00:50]} 25. Qxg4 {[%clk 00:08:07]} {[%emt
00:00:14]} Nxd3 {[%clk 00:07:58]} {[%emt 00:00:13]} 26. Bh6 {[%clk 00:07:49]}
{[%emt 00:00:23]} Be5 {[%clk 00:07:29]} {[%emt 00:00:34]} 27. Rd1 {[%clk
00:07:25]} {[%emt 00:00:29]} Nxb2 {[%clk 00:07:17]} {[%emt 00:00:18]} 28. Rb1
{[%clk 00:07:10]} {[%emt 00:00:19]} Kh8 {[%clk 00:06:55]} {[%emt 00:00:26]} 29.
Bc1 {[%clk 00:06:46]} {[%emt 00:00:29]} Nd3 {[%clk 00:06:29]} {[%emt 00:00:32]}
30. Bg5 {[%clk 00:05:19]} {[%emt 00:01:32]} Qd6 {[%clk 00:05:01]} {[%emt
00:01:33]} 31. Be7 {[%clk 00:04:47]} {[%emt 00:00:38]} Qh6 {[%clk 00:04:59]}
{[%emt 00:00:07]} 32. h3 {[%clk 00:03:42]} {[%emt 00:01:09]} Rg8 {[%clk
00:04:48]} {[%emt 00:00:15]} 33. Rb7 {[%clk 00:03:20]} {[%emt 00:00:28]} Qc1+
{[%clk 00:04:45]} {[%emt 00:00:09]} 34. Kg2 {[%clk 00:03:22]} {[%emt 00:00:03]}
Ne1+ {[%clk 00:04:44]} {[%emt 00:00:06]} 35. Kf1 {[%clk 00:02:55]} {[%emt
00:00:31]} Nc2+ {[%clk 00:03:33]} {[%emt 00:01:16]} 36. Kg2 {[%clk 00:02:58]}
{[%emt 00:00:02]} Ne1+ {[%clk 00:03:37]} {[%emt 00:00:01]} 37. Kf1 {[%clk
00:02:28]} {[%emt 00:00:35]} Nd3+ {[%clk 00:03:02]} {[%emt 00:00:40]} 38. Kg2
{[%clk 00:02:32]} {[%emt 00:00:02]} Qd2 {[%clk 00:02:54]} {[%emt 00:00:13]} 39.
Bh4 {[%clk 00:01:45]} {[%emt 00:00:52]} Ne1+ {[%clk 00:01:09]} {[%emt
00:01:50]} 40. Kf1 {[%clk 00:01:49]} {[%emt 00:00:01]} Nc2 {[%clk 00:00:50]}
{[%emt 00:00:24]} 41. Rxf7 {[%clk 00:01:19]} {[%emt 00:00:36]} Qd3+ {[%clk
00:00:11]} {[%emt 00:00:44]} 42. Qe2 {[%clk 00:01:15]} {[%emt 00:00:09]} Qxh3+
{[%clk 00:00:14]} {[%emt 00:00:02]} 43. Kg1 {[%clk 00:01:12]} {[%emt 00:00:08]}
Qh2+ {[%clk 00:00:16]} {[%emt 00:00:03]} 44. Kf1 {[%clk 00:01:10]} {[%emt
00:00:07]} Qh1# {[%clk 00:00:19]} {[%emt 00:00:02]} 0-1

[Event "SS Manhem Chess Week 2022: Goteborg Open"]
[Site "Schackcentrum, Vegagatan 20, Gothenburg, Sweden"]
[Date "2022.08.12"]
[Round "2.15"]
[White "Hammar, Arvid"]
[Black "Westman, Lennart"]
[Result "1-0"]
[TimeControl "15 minutes + 5 seconds per move from move one (Round 1 - 4) / 90 minutes + 30 seconds per move from move one (Round 5 - 8)"]
[WhiteFideId "1735977"]
[BlackFideId "1718690"]
[WhiteElo "1384"]
[BlackElo "1655"]

1. c4 {[%clk 00:15:07]} {[%emt 00:00:05]} e6 {[%clk 00:14:59]} {[%emt
00:00:43]} 2. d4 {[%clk 00:15:10]} {[%emt 00:00:02]} Bb4+ {[%clk 00:14:53]}
{[%emt 00:00:12]} 3. Bd2 {[%clk 00:15:06]} {[%emt 00:00:09]} a5 {[%clk
00:14:56]} {[%emt 00:00:02]} 4. a3 {[%clk 00:15:06]} {[%emt 00:00:05]} Be7
{[%clk 00:14:46]} {[%emt 00:00:14]} 5. Nc3 {[%clk 00:15:08]} {[%emt 00:00:03]}
Nf6 {[%clk 00:14:47]} {[%emt 00:00:05]} 6. e4 {[%clk 00:15:08]} {[%emt
00:00:04]} O-O {[%clk 00:14:25]} {[%emt 00:00:28]} 7. e5 {[%clk 00:15:06]}
{[%emt 00:00:07]} Ne8 {[%clk 00:14:27]} {[%emt 00:00:01]} 8. Nf3 {[%clk
00:15:09]} {[%emt 00:00:04]} f6 {[%clk 00:13:52]} {[%emt 00:00:40]} 9. Bd3
{[%clk 00:14:59]} {[%emt 00:00:14]} f5 {[%clk 00:13:17]} {[%emt 00:00:41]} 10.
Qc2 {[%clk 00:14:50]} {[%emt 00:00:14]} b6 {[%clk 00:12:43]} {[%emt 00:00:39]}
11. h4 {[%clk 00:14:38]} {[%emt 00:00:16]} Bb7 {[%clk 00:12:43]} {[%emt
00:00:06]} 12. O-O-O {[%clk 00:14:35]} {[%emt 00:00:07]} c5 {[%clk 00:11:38]}
{[%emt 00:01:10]} 13. d5 {[%clk 00:14:23]} {[%emt 00:00:17]} exd5 {[%clk
00:11:11]} {[%emt 00:00:32]} 14. cxd5 {[%clk 00:14:14]} {[%emt 00:00:14]} Rf7
{[%clk 00:10:07]} {[%emt 00:01:14]} 15. Ng5 {[%clk 00:14:09]} {[%emt 00:00:15]}
Bxg5 {[%clk 00:10:05]} {[%emt 00:00:07]} 16. Bxg5 {[%clk 00:14:09]} {[%emt
00:00:05]} Qc7 {[%clk 00:09:33]} {[%emt 00:00:38]} 17. d6 {[%clk 00:14:06]}
{[%emt 00:00:09]} Qc6 {[%clk 00:09:01]} {[%emt 00:00:37]} 18. Bc4 {[%clk
00:13:54]} {[%emt 00:00:15]} Kf8 {[%clk 00:07:56]} {[%emt 00:01:12]} 19. Bxf7
{[%clk 00:13:48]} {[%emt 00:00:11]} Kxf7 {[%clk 00:08:00]} {[%emt 00:00:01]} 20.
Qxf5+ {[%clk 00:13:48]} {[%emt 00:00:05]} Kg8 {[%clk 00:07:51]} {[%emt
00:00:14]} 21. Be7 {[%clk 00:13:37]} {[%emt 00:00:16]} h6 {[%clk 00:07:30]}
{[%emt 00:00:27]} 22. Nd5 {[%clk 00:12:54]} {[%emt 00:00:47]} Na6 {[%clk
00:07:04]} {[%emt 00:00:32]} 23. Qg6 {[%clk 00:12:38]} {[%emt 00:00:20]} Qa4
{[%clk 00:06:16]} {[%emt 00:00:54]} 24. Nf6+ {[%clk 00:11:34]} {[%emt
00:01:09]} Nxf6 {[%emt 00:00:09]} 25. exf6 {[%clk 00:11:26]} {[%emt 00:00:12]}
Qc4+ {[%clk 00:05:41]} {[%emt 00:00:38]} 26. Qc2 {[%clk 00:11:09]} {[%emt
00:00:21]} Qf4+ {[%clk 00:05:06]} {[%emt 00:00:40]} 27. Rd2 {[%clk 00:11:05]}
{[%emt 00:00:09]} Be4 {[%clk 00:04:54]} {[%emt 00:00:17]} 28. Qc4+ {[%clk
00:10:55]} {[%emt 00:00:15]} Kh7 {[%clk 00:04:30]} {[%emt 00:00:29]} 29. g3
{[%clk 00:10:09]} {[%emt 00:00:51]} Qf5 {[%clk 00:03:32]} {[%emt 00:01:04]} 30.
f7 {[%clk 00:09:17]} {[%emt 00:00:56]} Nb4 {[%clk 00:02:50]} {[%emt 00:00:48]}
31. f8=N+ {[%emt 00:05:25]} Rxf8 {[%emt 00:00:17]} 32. axb4 {[%clk 00:03:28]}
{[%emt 00:00:11]} Bxh1 {[%clk 00:02:36]} {[%emt 00:00:19]} 33. Bxf8 {[%clk
00:03:14]} {[%emt 00:00:19]} Qxf8 {[%clk 00:02:38]} {[%emt 00:00:02]} 34. bxc5
{[%clk 00:02:58]} {[%emt 00:00:21]} bxc5 {[%clk 00:02:29]} {[%emt 00:00:15]} 35.
Qxc5 {[%clk 00:02:44]} {[%emt 00:00:19]} Bc6 {[%clk 00:02:13]} {[%emt
00:00:21]} 36. Re2 {[%clk 00:02:41]} {[%emt 00:00:09]} a4 {[%clk 00:02:06]}
{[%emt 00:00:12]} 37. f4 {[%clk 00:02:32]} {[%emt 00:00:13]} Qf6 {[%clk
00:02:02]} {[%emt 00:00:10]} 38. Re5 {[%clk 00:02:07]} {[%emt 00:00:30]} Qg6
{[%clk 00:02:04]} {[%emt 00:00:03]} 39. Qc2 {[%clk 00:02:04]} {[%emt 00:00:06]}
Qxc2+ {[%clk 00:01:58]} {[%emt 00:00:12]} 40. Kxc2 {[%clk 00:02:07]} {[%emt
00:00:02]} Kg6 {[%clk 00:01:56]} {[%emt 00:00:07]} 41. g4 {[%clk 00:01:55]}
{[%emt 00:00:17]} Kf6 {[%clk 00:01:57]} {[%emt 00:00:04]} 42. g5+ {[%clk
00:01:49]} {[%emt 00:00:10]} hxg5 {[%clk 00:02:02]} 43. hxg5+ {[%clk 00:01:52]}
{[%emt 00:00:03]} Kg6 {[%clk 00:02:05]} {[%emt 00:00:02]} 44. Kc3 {[%clk
00:01:44]} {[%emt 00:00:11]} Kf7 {[%clk 00:01:55]} {[%emt 00:00:15]} 45. Kd4
{[%clk 00:01:43]} {[%emt 00:00:06]} Kg6 {[%clk 00:01:59]} {[%emt 00:00:02]} 46.
Re3 {[%clk 00:01:13]} {[%emt 00:00:32]} Kf5 {[%clk 00:01:57]} {[%emt 00:00:09]}
47. Re1 {[%clk 00:01:03]} {[%emt 00:00:15]} Kxf4 {[%clk 00:02:00]} {[%emt
00:00:03]} 48. g6 {[%clk 00:01:06]} {[%emt 00:00:02]} Kg5 {[%clk 00:02:02]}
{[%emt 00:00:02]} 49. Rg1+ {[%clk 00:01:09]} {[%emt 00:00:02]} Kf6 {[%clk
00:02:05]} {[%emt 00:00:01]} 50. Kc5 {[%clk 00:01:10]} {[%emt 00:00:05]} Be4
{[%clk 00:02:00]} {[%emt 00:00:10]} 51. Kb6 {[%clk 00:01:02]} {[%emt 00:00:13]}
Bf5 {[%clk 00:01:45]} {[%emt 00:00:21]} 52. Kc7 {[%clk 00:00:55]} {[%emt
00:00:12]} Ke6 {[%clk 00:01:41]} {[%emt 00:00:08]} 53. Re1+ {[%clk 00:00:49]}
{[%emt 00:00:11]} Kf6 {[%clk 00:01:45]} {[%emt 00:00:02]} 54. Rf1 {[%clk
00:00:43]} {[%emt 00:00:11]} Kxg6 {[%clk 00:01:46]} {[%emt 00:00:04]} 55. Rxf5
{[%clk 00:00:39]} {[%emt 00:00:09]} Kxf5 {[%clk 00:01:46]} {[%emt 00:00:05]} 56.
Kxd7 {[%clk 00:00:42]} {[%emt 00:00:02]} g5 {[%clk 00:01:41]} {[%emt 00:00:10]}
57. Ke7 {[%clk 00:00:34]} {[%emt 00:00:12]} g4 {[%clk 00:01:45]} {[%emt
00:00:01]} 58. d7 {[%clk 00:00:38]} {[%emt 00:00:01]} 1-0

[Event "SS Manhem Chess Week 2022: Goteborg Open"]
[Site "Schackcentrum, Vegagatan 20, Gothenburg, Sweden"]
[Date "2022.08.12"]
[Round "2.16"]
[White "Shchetinin, Oleg"]
[Black "Ghaderi, Noan"]
[Result "1/2-1/2"]
[TimeControl "15 minutes + 5 seconds per move from move one (Round 1 - 4) / 90 minutes + 30 seconds per move from move one (Round 5 - 8)"]
[WhiteFideId "1740210"]
[BlackFideId "1747096"]
[WhiteElo "1643"]
[BlackElo "1367"]

1. d4 {[%clk 00:15:07]} d5 {[%clk 00:15:08]} {[%emt 00:00:03]} 2. Bf4 {[%clk
00:15:05]} {[%emt 00:00:06]} Nf6 {[%clk 00:15:08]} {[%emt 00:00:06]} 3. Nf3
{[%clk 00:15:06]} {[%emt 00:00:04]} Bf5 {[%clk 00:15:06]} {[%emt 00:00:06]} 4.
e3 {[%clk 00:14:59]} {[%emt 00:00:12]} e6 {[%clk 00:15:03]} {[%emt 00:00:09]} 5.
Nbd2 {[%clk 00:14:54]} {[%emt 00:00:10]} c5 {[%clk 00:14:42]} {[%emt 00:00:26]}
6. c3 {[%clk 00:14:27]} {[%emt 00:00:32]} c4 {[%clk 00:13:18]} {[%emt
00:01:29]} 7. Qa4+ {[%clk 00:14:02]} {[%emt 00:00:30]} Nbd7 {[%clk 00:12:27]}
{[%emt 00:00:57]} 8. b3 {[%clk 00:12:05]} {[%emt 00:02:01]} cxb3 {[%clk
00:12:19]} {[%emt 00:00:13]} 9. axb3 {[%clk 00:11:37]} {[%emt 00:00:33]} Be7
{[%clk 00:12:05]} {[%emt 00:00:19]} 10. Qb5 {[%clk 00:10:49]} {[%emt 00:00:53]}
Qc8 {[%clk 00:10:50]} {[%emt 00:01:21]} 11. c4 {[%clk 00:09:48]} {[%emt
00:01:05]} O-O {[%clk 00:10:17]} {[%emt 00:00:38]} 12. Nh4 {[%clk 00:09:47]}
{[%emt 00:00:06]} Bg6 {[%clk 00:07:45]} {[%emt 00:02:37]} 13. Nxg6 {[%clk
00:09:49]} {[%emt 00:00:02]} fxg6 {[%clk 00:07:24]} {[%emt 00:00:26]} 14. h3
{[%clk 00:09:44]} {[%emt 00:00:11]} a6 {[%clk 00:07:18]} {[%emt 00:00:12]} 15.
Qa4 {[%clk 00:09:31]} {[%emt 00:00:18]} Nb6 {[%clk 00:06:50]} {[%emt 00:00:32]}
16. Qa2 {[%clk 00:09:29]} {[%emt 00:00:07]} Nh5 {[%clk 00:06:00]} {[%emt
00:00:55]} 17. Be5 {[%clk 00:09:10]} {[%emt 00:00:24]} Nd7 {[%clk 00:05:18]}
{[%emt 00:00:47]} 18. Be2 {[%clk 00:08:32]} {[%emt 00:00:42]} Nhf6 {[%clk
00:04:51]} {[%emt 00:00:33]} 19. O-O {[%clk 00:08:22]} {[%emt 00:00:15]} Nxe5
{[%clk 00:04:10]} {[%emt 00:00:46]} 20. dxe5 {[%clk 00:08:24]} {[%emt
00:00:02]} Ne4 {[%clk 00:02:54]} {[%emt 00:01:21]} 21. cxd5 {[%clk 00:08:15]}
{[%emt 00:00:15]} exd5 {[%clk 00:02:56]} {[%emt 00:00:03]} 22. Nxe4 {[%clk
00:08:11]} {[%emt 00:00:08]} dxe4 {[%clk 00:02:57]} {[%emt 00:00:04]} 23. Bc4+
{[%clk 00:08:11]} {[%emt 00:00:03]} Kh8 {[%clk 00:02:58]} {[%emt 00:00:05]} 24.
Rac1 {[%clk 00:07:59]} {[%emt 00:00:16]} Qf5 {[%clk 00:02:46]} {[%emt
00:00:18]} 25. Qb2 {[%clk 00:07:03]} {[%emt 00:01:01]} Bh4 {[%clk 00:02:10]}
{[%emt 00:00:41]} 26. e6 {[%clk 00:06:22]} {[%emt 00:00:46]} Rae8 {[%clk
00:01:32]} {[%emt 00:00:43]} 27. Rcd1 {[%clk 00:06:05]} {[%emt 00:00:21]} b5
{[%clk 00:01:04]} {[%emt 00:00:34]} 28. Rd7 {[%clk 00:06:02]} {[%emt 00:00:07]}
Bf6 {[%clk 00:01:04]} {[%emt 00:00:06]} 29. g4 {[%clk 00:04:17]} {[%emt
00:01:50]} Bxb2 {[%clk 00:00:19]} {[%emt 00:00:51]} 30. gxf5 {[%clk 00:04:20]}
{[%emt 00:00:02]} Rxf5 {[%clk 00:00:20]} {[%emt 00:00:04]} 31. Rfd1 {[%clk
00:03:46]} {[%emt 00:00:38]} Bf6 {[%clk 00:00:18]} {[%emt 00:00:07]} 32. Bd5
{[%clk 00:03:41]} {[%emt 00:00:10]} h6 {[%clk 00:00:18]} {[%emt 00:00:05]} 33.
Bxe4 {[%clk 00:03:41]} {[%emt 00:00:05]} Re5 {[%clk 00:00:23]} 34. Bxg6 {[%emt
00:00:09]} Rg5+ 35. Kf1 {[%clk 00:03:30]} {[%emt 00:00:12]} Rxg6 {[%clk
00:00:31]} {[%emt 00:00:01]} 36. R1d6 {[%clk 00:03:23]} {[%emt 00:00:12]} Be5
{[%clk 00:00:33]} {[%emt 00:00:03]} 37. Rxa6 {[%clk 00:03:24]} {[%emt
00:00:04]} Rgxe6 {[%clk 00:00:35]} {[%emt 00:00:02]} 38. Raa7 {[%clk 00:02:52]}
{[%emt 00:00:38]} Bf6 {[%clk 00:00:34]} {[%emt 00:00:06]} 39. Rab7 {[%clk
00:02:54]} {[%emt 00:00:04]} Re5 {[%clk 00:00:34]} {[%emt 00:00:04]} 40. Ke2
{[%clk 00:01:54]} {[%emt 00:01:05]} Rf5 {[%clk 00:00:38]} {[%emt 00:00:02]} 41.
f3 {[%clk 00:01:48]} {[%emt 00:00:10]} Rfe5 {[%clk 00:00:40]} {[%emt 00:00:03]}
42. e4 {[%clk 00:01:51]} {[%emt 00:00:02]} Rc5 {[%clk 00:00:43]} {[%emt
00:00:03]} 43. Rd3 {[%clk 00:01:23]} {[%emt 00:00:33]} Rh5 {[%clk 00:00:42]}
{[%emt 00:00:06]} 44. Rdd7 {[%clk 00:00:45]} {[%emt 00:00:42]} Rxh3 {[%clk
00:00:43]} {[%emt 00:00:04]} 45. Rxb5 {[%clk 00:00:49]} {[%emt 00:00:02]} Rh2+
{[%clk 00:00:46]} {[%emt 00:00:01]} 46. Kd3 {[%clk 00:00:48]} {[%emt 00:00:05]}
Rd8 {[%clk 00:00:51]} {[%emt 00:00:01]} 47. Rxd8+ {[%clk 00:00:52]} {[%emt
00:00:01]} Bxd8 {[%clk 00:00:55]} 48. Rb8 {[%clk 00:00:56]} {[%emt 00:00:01]}
Kh7 {[%clk 00:00:59]} 49. Rxd8 {[%clk 00:00:59]} {[%emt 00:00:02]} Rb2 {[%clk
00:01:01]} {[%emt 00:00:02]} 50. Kc4 {[%clk 00:01:02]} {[%emt 00:00:03]} h5
{[%clk 00:01:04]} {[%emt 00:00:02]} 51. Rd5 {[%clk 00:01:03]} {[%emt 00:00:04]}
Kh6 {[%clk 00:01:07]} {[%emt 00:00:03]} 52. b4 {[%clk 00:01:05]} {[%emt
00:00:03]} h4 {[%clk 00:01:07]} {[%emt 00:00:03]} 53. b5 {[%clk 00:01:08]}
{[%emt 00:00:04]} Rb1 {[%clk 00:01:03]} {[%emt 00:00:09]} 54. Rd6+ {[%clk
00:01:10]} {[%emt 00:00:02]} g6 {[%clk 00:01:08]} 55. Rd8 {[%clk 00:01:11]}
{[%emt 00:00:05]} Kh7 {[%clk 00:01:08]} {[%emt 00:00:04]} 56. Kc5 {[%clk
00:01:09]} {[%emt 00:00:07]} Rc1+ {[%clk 00:01:11]} {[%emt 00:00:02]} 57. Kb6
{[%clk 00:01:12]} {[%emt 00:00:02]} h3 {[%clk 00:01:11]} {[%emt 00:00:04]} 58.
Rd2 {[%clk 00:01:16]} {[%emt 00:00:01]} Rc3 {[%clk 00:01:14]} {[%emt 00:00:03]}
59. f4 {[%clk 00:01:18]} {[%emt 00:00:03]} Rf3 {[%clk 00:01:14]} {[%emt
00:00:04]} 60. Rh2 {[%clk 00:01:20]} {[%emt 00:00:03]} Kg7 {[%clk 00:01:16]}
{[%emt 00:00:04]} 61. Kc7 {[%clk 00:01:16]} {[%emt 00:00:08]} Rxf4 {[%clk
00:00:39]} {[%emt 00:00:43]} 62. Rxh3 {[%clk 00:01:12]} {[%emt 00:00:10]} Rxe4
{[%clk 00:00:35]} {[%emt 00:00:09]} 63. b6 {[%clk 00:01:16]} Re7+ {[%clk
00:00:39]} {[%emt 00:00:01]} 64. Kb8 {[%clk 00:01:19]} {[%emt 00:00:01]} Re1
{[%clk 00:00:31]} {[%emt 00:00:12]} 65. b7 {[%clk 00:01:21]} {[%emt 00:00:03]}
Rb1 {[%clk 00:00:34]} {[%emt 00:00:02]} 66. Rc3 {[%clk 00:01:23]} {[%emt
00:00:03]} Kh6 {[%clk 00:00:37]} {[%emt 00:00:03]} 67. Kc7 {[%clk 00:01:27]}
{[%emt 00:00:02]} Kh5 {[%clk 00:00:38]} {[%emt 00:00:04]} 68. b8=Q {[%clk
00:01:28]} {[%emt 00:00:04]} Rxb8 {[%clk 00:00:41]} {[%emt 00:00:01]} 69. Kxb8
{[%clk 00:01:32]} g5 {[%clk 00:00:45]} {[%emt 00:00:01]} 70. Rc5 {[%clk
00:01:35]} {[%emt 00:00:03]} Kh4 {[%clk 00:00:49]} 71. Kc7 {[%clk 00:01:37]}
{[%emt 00:00:03]} g4 {[%clk 00:00:53]} {[%emt 00:00:01]} 72. Kd6 {[%clk
00:01:36]} {[%emt 00:00:06]} g3 {[%clk 00:00:54]} {[%emt 00:00:04]} 73. Re5
{[%clk 00:01:33]} {[%emt 00:00:08]} g2 {[%clk 00:00:55]} {[%emt 00:00:04]} 74.
Re1 {[%clk 00:01:36]} {[%emt 00:00:02]} Kh3 {[%clk 00:00:59]} 1/2-1/2